bitfinex/quotes_SOLUSD_20240930
["timestamp","ask_amount","ask_price","bid_price","bid_amount"]
[1727684990588,16.2723,156.63,156.49,20.0]
[1727684990589,6.3858,156.6,156.49,20.0]
[1727684990757,6.3858,156.6,156.46,32.46664375]
[1727684990758,16.2723,156.63,156.52,44.027864]
[1727684991084,6.3851,156.62,156.52,44.027864]
[1727684991978,16.2723,156.63,156.52,44.027864]
[1727684992181,22.6568,156.63,156.52,44.027864]
[1727684992477,6.3848,156.62,156.52,44.027864]
[1727684994178,16.2723,156.63,156.52,43.902374]
[1727684994370,6.3857,156.6,156.52,23.902374]
[1727684994569,6.3857,156.6,156.52,0.12549]
[1727684996060,6.3857,156.6,156.52,20.12549]
[1727684996381,6.3857,156.6,156.52,20.0]
[1727684998572,24.027864,156.62,156.52,20.0]
[1727684998777,6.3861,156.59,156.52,20.0]
[1727685000280,6.3876,156.56,156.46,21.2854]
[1727685000483,6.3882,156.54,156.46,15.2439]
[1727685000697,23.902374,156.58,156.46,15.2439]
[1727685001007,6.3876,156.56,156.46,25.51939553]
[1727685001175,6.3876,156.56,156.47,1.27773046]
[1727685001371,21.5075,156.59,156.48,10.27549553]
[1727685001575,21.5075,156.59,156.49,20.0]
[1727685001796,6.3869,156.57,156.49,20.0]
[1727685002390,6.3873,156.56,156.49,20.0]
[1727685003275,24.027864,156.58,156.47,20.0]
[1727685003495,6.3889,156.53,156.44,16.92203562]
[1727685003700,6.3889,156.53,156.44,10.27549553]
[1727685003903,109.43999864,156.64,156.44,6.3921]
[1727685003904,6.3897,156.5,156.44,6.3921]
[1727685004078,6.3897,156.5,156.42,21.9503]
[1727685004079,6.3897,156.5,156.45,6.3918]
[1727685004277,6.3897,156.5,156.42,21.9503]
[1727685004278,6.3897,156.5,156.44,6.3921]
[1727685004497,21.781,156.5,156.44,6.3921]
[1727685004679,6.3906,156.48,156.39,17.73363752]
[1727685004876,6.3906,156.48,156.43,6.3926]
[1727685005487,6.3906,156.48,156.44,20.0]
[1727685005705,15.3913,156.5,156.39,11.08967663]
[1727685005877,6.3912,156.47,156.39,11.08967663]
[1727685006201,6.3905,156.49,156.39,11.08967663]
[1727685006504,6.3905,156.49,156.42,6.3926]
[1727685006812,6.3905,156.49,156.39,11.08967663]
[1727685006813,6.3905,156.49,156.43,6.3924]
[1727685006993,6.3905,156.49,156.44,20.0]
[1727685007504,6.3905,156.49,156.43,6.3924]
[1727685007698,6.3905,156.49,156.43,20.0]
[1727685007920,6.3906,156.48,156.43,26.3925]
[1727685008409,6.3901,156.49,156.43,26.3925]
[1727685010009,15.3913,156.5,156.41,31.55387847]
[1727685010186,15.3913,156.5,156.43,23.776884]
[1727685010388,21.7811,156.5,156.45,6.3917]
[1727685010991,15.3913,156.5,156.45,6.3917]
[1727685012204,15.3913,156.5,156.43,23.776884]
[1727685012205,15.3913,156.5,156.47,6.3909]
[1727685012415,15.3913,156.5,156.49,6.3901]
[1727685012606,29.3456,156.54,156.49,6.3901]
[1727685013618,29.3456,156.54,156.48,6.3905]
[1727685014314,0.12549,156.53,156.48,20.0]
[1727685014492,6.389,156.52,156.47,6.3909]
[1727685016912,24.027864,156.53,156.44,6.3922]
[1727685017104,6.3902,156.49,156.44,6.3922]
[1727685017491,24.027864,156.53,156.4,1.27836548]
[1727685017696,6.3902,156.49,156.39,11.08967663]
[1727685017918,6.3902,156.49,156.44,6.3921]
[1727685020201,40.000064,156.53,156.45,6.3917]
[1727685020408,6.3898,156.5,156.45,6.3917]
[1727685021596,6.3894,156.51,156.46,6.3913]
[1727685022000,6.389,156.52,156.43,10.27549553]
[1727685022221,22.9571,156.54,156.44,21.27811922]
[1727685022402,22.9571,156.54,156.46,20.0]
[1727685022600,22.9571,156.54,156.47,1.27797186]
[1727685023020,22.9571,156.54,156.46,20.0]
[1727685023226,22.9571,156.54,156.51,6.3893]
[1727685023424,22.9571,156.54,156.5,6.3896]
[1727685023810,29.3453,156.54,156.5,6.3896]
[1727685024432,29.3453,156.54,156.46,20.0]
[1727685024605,22.9571,156.54,156.47,34.05237953]
[1727685024800,16.3982,156.54,156.52,6.3885]
[1727685025108,6.3872,156.57,156.52,6.3885]
[1727685027226,22.7062,156.58,156.49,11.55329612]
[1727685027426,16.3781,156.62,156.55,10.27549553]
[1727685027835,16.3781,156.62,156.56,1.27735853]
[1727685028211,16.3781,156.62,156.56,21.27735853]
[1727685028410,22.4341,156.67,156.58,20.0]
[1727685028633,22.4341,156.67,156.59,1.27701702]
[1727685028925,28.817,156.67,156.59,1.27701702]
[1727685029129,22.4341,156.67,156.58,20.0]
[1727685029314,6.3836,156.65,156.58,20.0]
[1727685031846,6.3842,156.64,156.58,20.0]
[1727685033338,0.25098,156.66,156.5,22.7274]
[1727685033636,6.3866,156.58,156.51,30.0]
[1727685034014,15.0833,156.6,156.52,1.27754788]
[1727685034307,15.0833,156.6,156.51,30.0]
[1727685034516,15.0833,156.6,156.5,22.7274]
[1727685035032,15.0833,156.6,156.51,20.0]
[1727685035237,15.0833,156.6,156.53,20.12549]
[1727685035419,15.0833,156.6,156.54,23.776884]
[1727685035628,15.0833,156.6,156.53,20.0]
[1727685035809,21.469,156.6,156.53,20.0]
[1727685037733,15.0833,156.6,156.54,1.27744893]
[1727685037962,15.0833,156.6,156.54,23.776884]
[1727685038317,15.0833,156.6,156.55,20.0]
[1727685039113,6.3849,156.62,156.56,23.776884]
[1727685042724,6.3845,156.63,156.56,23.776884]
[1727685042926,6.3845,156.63,156.57,20.0]
[1727685044137,22.524,156.64,156.58,1.27718795]
[1727685045620,22.524,156.64,156.57,20.0]
[1727685046646,22.524,156.64,156.58,1.27711282]
[1727685047145,22.524,156.64,156.59,23.776884]
[1727685047146,16.1399,156.64,156.59,23.776884]
[1727685047726,16.1399,156.64,156.58,24.027864]
[1727685048018,16.1399,156.64,156.59,20.0]
[1727685049843,22.5239,156.64,156.59,20.0]
[1727685052230,22.5239,156.64,156.59,26.3859]
[1727685056124,17.501475,156.64,156.59,26.3859]
[1727685058036,17.501475,156.64,156.59,20.0]
[1727685058345,11.117475,156.64,156.61,6.3852]
[1727685060560,11.117475,156.64,156.6,6.3856]
[1727685061355,11.117475,156.64,156.59,20.0]
[1727685061550,17.501575,156.64,156.59,26.386]
[1727685061746,6.3845,156.63,156.59,26.386]
[1727685061955,6.3849,156.62,156.58,6.3865]
[1727685062259,11.117475,156.64,156.59,20.0]
[1727685062462,6.3849,156.62,156.59,20.0]
[1727685062665,6.3845,156.63,156.59,20.0]
[1727685063045,17.501575,156.64,156.59,6.3859]
[1727685063448,11.117475,156.64,156.6,26.3853]
[1727685063644,11.117475,156.64,156.59,6.386]
[1727685063853,11.117475,156.64,156.57,26.3868]
[1727685064155,6.3847,156.63,156.59,20.0]
[1727685065454,6.3847,156.63,156.59,6.386]
[1727685065856,17.501575,156.64,156.6,6.3855]
[1727685066053,11.117475,156.64,156.61,6.3851]
[1727685068064,11.117475,156.64,156.58,10.27047752]
[1727685068271,6.3832,156.66,156.59,45.05386111]
[1727685068568,6.3832,156.66,156.61,6.3852]
[1727685068745,6.27,156.67,156.6,10.27047752]
[1727685068940,6.3816,156.7,156.66,6.3831]
[1727685069162,15.6402,156.72,156.67,20.0]
[1727685069347,15.6402,156.72,156.65,6.3835]
[1727685069549,6.3817,156.7,156.66,20.0]
[1727685069850,31.5931,156.72,156.54,6.17216257]
[1727685070053,6.3829,156.67,156.63,20.0]
[1727685070256,31.5931,156.72,156.63,20.0]
[1727685070257,6.3832,156.66,156.63,20.0]
[1727685070570,6.3832,156.66,156.62,6.3848]
[1727685071279,16.4931,156.66,156.53,16.3681]
[1727685071570,6.3845,156.63,156.58,6.3864]
[1727685071946,6.3845,156.63,156.55,10.27047752]
[1727685072150,6.3845,156.63,156.58,6.3864]
[1727685072348,6.385,156.62,156.53,26.63857752]
[1727685072858,16.4931,156.66,156.54,6.388]
[1727685072859,22.2389,156.59,156.54,6.388]
[1727685073045,22.2389,156.59,156.53,6.3884]
[1727685073046,6.3866,156.58,156.53,6.3884]
[1727685073249,15.8528,156.59,156.49,32.69948621]
[1727685073250,15.8528,156.59,156.54,1.27750789]
[1727685073472,15.8528,156.59,156.55,6.3876]
[1727685074671,15.8528,156.59,156.51,0.12549]
[1727685074874,6.1869,156.64,156.53,0.12549]
[1727685074875,15.64139,156.63,156.53,0.12549]
[1727685075063,15.5159,156.63,156.55,0.12549]
[1727685075265,15.5159,156.63,156.59,6.386]
[1727685081081,15.5159,156.63,156.53,16.17867194]
[1727685081380,15.5159,156.63,156.6,6.3856]
[1727685081786,14.0159,156.63,156.55,20.12549]
[1727685082077,6.2611,156.69,156.6,23.776884]
[1727685082382,6.3829,156.67,156.62,6.3845]
[1727685083295,6.3825,156.68,156.63,6.3843]
[1727685084067,6.3828,156.67,156.63,6.3843]
[1727685084581,6.3828,156.67,156.62,6.3848]
[1727685084767,22.7259,156.67,156.62,6.3848]
[1727685085976,22.7259,156.67,156.61,1.27682254]
[1727685086178,22.7259,156.67,156.63,6.3843]
[1727685086389,22.7259,156.67,156.62,6.3847]
[1727685086596,6.3832,156.66,156.62,6.3847]
[1727685087557,6.384,156.65,156.57,20.0]
[1727685087763,6.3841,156.64,156.59,20.0]
[1727685087963,6.3841,156.64,156.6,6.3856]
[1727685088486,6.3837,156.65,156.6,6.3856]
[1727685090665,16.3431,156.67,156.59,20.0]
[1727685090964,6.3844,156.63,156.59,20.0]
[1727685091371,6.3849,156.62,156.53,6.4936]
[1727685091574,6.3849,156.62,156.54,23.902374]
[1727685091889,6.3849,156.62,156.57,6.3867]
[1727685093074,6.3849,156.62,156.58,20.0]
[1727685093386,6.3849,156.62,156.58,26.3864]
[1727685093578,20.12549,156.66,156.59,5.74319395]
[1727685093786,6.3839,156.65,156.6,6.3856]
[1727685093960,22.9103,156.67,156.61,6.3852]
[1727685094161,22.9103,156.67,156.61,1.27693341]
[1727685094162,29.2931,156.67,156.61,1.27693341]
[1727685094367,22.9103,156.67,156.63,6.3844]
[1727685094571,22.9103,156.67,156.64,6.384]
[1727685095266,6.3817,156.7,156.65,10.84800993]
[1727685095472,6.3817,156.7,156.66,6.3832]
[1727685096300,6.3812,156.71,156.66,6.3832]
[1727685097888,6.3816,156.7,156.66,6.3832]
[1727685098692,6.3812,156.71,156.66,6.3832]
[1727685101569,6.3808,156.72,156.67,1.27648164]
[1727685101788,6.3808,156.72,156.67,21.27648164]
[1727685101997,6.3808,156.72,156.67,26.3827]
[1727685103679,21.967,156.75,156.59,32.51298194]
[1727685103680,6.3817,156.7,156.59,32.51298194]
[1727685103883,6.3829,156.67,156.62,6.3845]
[1727685104078,6.3829,156.67,156.63,24.45794795]
[1727685104273,21.3689,156.69,156.64,4.45794795]
[1727685104490,21.3689,156.69,156.6,20.0]
[1727685104674,6.3828,156.67,156.63,20.0]
[1727685104876,6.3828,156.67,156.62,6.3847]
[1727685105077,6.3828,156.67,156.59,16.4598]
[1727685105280,6.3828,156.67,156.63,6.3843]
[1727685105514,6.3825,156.68,156.63,6.3843]
[1727685105918,16.2863,156.73,156.64,17.32991891]
[1727685106206,16.2863,156.73,156.65,1.27637105]
[1727685106497,16.2863,156.73,156.67,6.3824]
[1727685106701,22.6667,156.73,156.67,6.3824]
[1727685107213,16.2863,156.73,156.67,6.3824]
[1727685109709,6.3808,156.72,156.62,24.027864]
[1727685109896,6.3808,156.72,156.64,0.25098]
[1727685110380,16.2863,156.73,156.67,6.3828]
[1727685110777,22.6667,156.73,156.67,6.3828]
[1727685112684,6.3813,156.71,156.63,20.0]
[1727685112883,23.902374,156.72,156.65,6.3836]
[1727685113112,23.902374,156.72,156.59,32.51298194]
[1727685113113,6.3816,156.7,156.64,6.384]
[1727685115315,20.0,156.72,156.62,23.902374]
[1727685115498,20.0,156.72,156.67,6.3825]
[1727685115499,26.3808,156.72,156.67,6.3825]
[1727685115699,26.3808,156.72,156.65,6.3832]
[1727685115700,6.3816,156.7,156.65,6.3832]
[1727685116013,6.3816,156.7,156.64,6.3838]
[1727685119992,6.3816,156.7,156.62,6.3848]
[1727685119993,16.6666,156.67,156.62,6.3848]
[1727685120289,6.3832,156.66,156.59,6.3857]
[1727685120488,6.3837,156.65,156.59,6.3857]
[1727685120906,6.3832,156.66,156.6,6.3855]
[1727685121618,16.6666,156.67,156.65,6.3836]
[1727685121793,6.1465,156.7,156.66,6.3832]
[1727685122704,16.2093,156.71,156.67,1.27645339]
[1727685122997,16.2093,156.71,156.64,20.25098]
[1727685123310,6.4883,156.74,156.68,6.3824]
[1727685124291,6.4883,156.74,156.69,6.3819]
[1727685124491,6.4883,156.74,156.7,1.27615317]
[1727685124893,6.4883,156.74,156.7,6.3815]
[1727685127620,16.213,156.75,156.7,6.3815]
[1727685130915,16.213,156.75,156.71,7.6571259]
[1727685131115,16.213,156.75,156.71,6.381]
[1727685131513,16.213,156.75,156.72,7.65674626]
[1727685131698,6.0123,156.77,156.72,6.3807]
[1727685131911,16.0735,156.79,156.73,1.27591321]
[1727685132410,16.0735,156.79,156.75,6.3795]
[1727685132626,16.0735,156.79,156.68,30.257584]
[1727685132627,6.3792,156.76,156.74,1.27568242]
[1727685132829,6.6495,156.78,156.58,84.53133707]
[1727685133036,6.3796,156.75,156.6,46.05318194]
[1727685133336,6.3796,156.75,156.62,16.05318194]
[1727685134125,6.3796,156.75,156.69,6.3818]
[1727685134510,6.3803,156.74,156.68,20.0]
[1727685134722,6.3805,156.73,156.68,26.3824]
[1727685135326,6.3805,156.73,156.68,6.3824]
[1727685135830,6.38,156.74,156.68,6.3824]
[1727685136934,23.902374,156.77,156.7,6.3815]
[1727685136935,6.3795,156.76,156.7,6.3815]
[1727685137131,23.776884,156.75,156.7,6.3815]
[1727685137713,6.3795,156.76,156.71,1.27615557]
[1727685137917,6.3795,156.76,156.7,6.3815]
[1727685138637,6.6495,156.78,156.72,6.3807]
[1727685138837,6.3788,156.77,156.72,6.1272]
[1727685139138,6.3788,156.77,156.71,6.3811]
[1727685139803,6.3788,156.77,156.72,1.27600904]
[1727685140009,6.3788,156.77,156.72,7.65660904]
[1727685140227,13.0279,156.78,156.72,6.3806]
[1727685141620,6.3777,156.8,156.74,6.3798]
[1727685141828,6.3779,156.79,156.74,6.3798]
[1727685142410,6.3779,156.79,156.71,0.12549]
[1727685142818,6.3787,156.78,156.7,0.25098]
[1727685143013,6.3787,156.78,156.7,24.027864]
[1727685143342,23.776884,156.81,156.7,0.12549]
[1727685143540,23.776884,156.81,156.69,20.12549]
[1727685143541,0.12549,156.8,156.69,20.12549]
[1727685143838,6.3788,156.77,156.7,6.3812]
[1727685144331,6.3788,156.77,156.69,0.12549]
[1727685144515,6.3788,156.77,156.71,6.3811]
[1727685145636,6.3788,156.77,156.72,1.27596181]
[1727685146030,6.3784,156.78,156.72,1.27596181]
[1727685146736,6.3788,156.77,156.71,6.3811]
[1727685147333,6.3788,156.77,156.72,1.27596302]
[1727685147836,6.3788,156.77,156.71,6.3811]
[1727685150124,23.776884,156.81,156.7,6.3815]
[1727685150125,6.3791,156.76,156.7,6.3815]
[1727685155732,6.3791,156.76,156.71,1.2759759]
[1727685156846,6.3791,156.76,156.71,7.6571759]
[1727685157441,6.3791,156.76,156.71,6.3812]
[1727685160946,6.3796,156.75,156.7,20.0]
[1727685162756,6.3796,156.75,156.71,1.27610425]
[1727685163548,6.3796,156.75,156.7,20.0]
[1727685164454,6.3796,156.75,156.7,6.3815]
[1727685164659,6.3796,156.75,156.71,5.73132577]
[1727685164954,6.3796,156.75,156.72,4.45527669]
[1727685165160,6.3796,156.75,156.73,4.45527669]
[1727685165329,6.3796,156.75,156.71,4.45527669]
[1727685165529,6.3796,156.75,156.72,4.45527669]
[1727685165746,6.3799,156.74,156.73,4.45527669]
[1727685165954,15.9453,156.79,156.68,4.45527669]
[1727685166251,6.3805,156.73,156.69,4.45527669]
[1727685166428,6.3805,156.73,156.68,20.0]
[1727685166429,6.3805,156.73,156.7,4.45527669]
[1727685166628,6.3805,156.73,156.71,4.45527669]
[1727685166956,6.3805,156.73,156.68,26.3824]
[1727685167142,6.3805,156.73,156.69,4.45629597]
[1727685167447,6.3805,156.73,156.7,4.45629597]
[1727685167632,6.38,156.74,156.71,4.45629597]
[1727685167836,6.38,156.74,156.72,4.45629597]
[1727685168053,6.38,156.74,156.68,6.3824]
[1727685168267,6.38,156.74,156.69,4.46190521]
[1727685168562,6.38,156.74,156.7,4.46190521]
[1727685168735,6.38,156.74,156.71,4.46190521]
[1727685168925,24.027864,156.78,156.72,4.46190521]
[1727685169131,21.6423,156.76,156.65,15.9625]
[1727685169354,6.382,156.69,156.66,4.46285019]
[1727685169555,6.382,156.69,156.67,4.46285019]
[1727685169768,6.382,156.69,156.68,4.46285019]
[1727685170469,6.3826,156.68,156.62,30.0]
[1727685170660,6.3826,156.68,156.64,1.27658928]
[1727685170857,6.382,156.69,156.64,1.27658928]
[1727685171584,6.382,156.69,156.63,1.27663627]
[1727685172065,22.4388,156.7,156.63,1.27663627]
[1727685172245,15.7293,156.74,156.63,1.27663627]
[1727685172674,23.776884,156.73,156.63,1.27663627]
[1727685173072,6.3812,156.71,156.65,6.3836]
[1727685173273,6.3812,156.71,156.66,1.27648694]
[1727685173576,6.3812,156.71,156.65,6.3836]
[1727685173958,6.3816,156.7,156.64,6.384]
[1727685176748,6.3812,156.71,156.65,7.66009093]
[1727685176949,15.7293,156.74,156.65,1.27649093]
[1727685177774,6.3812,156.71,156.66,6.3831]
[1727685177952,6.3812,156.71,156.67,1.27643157]
[1727685178468,6.3804,156.73,156.67,7.65913157]
[1727685179058,6.3804,156.73,156.68,1.2763273]
[1727685179459,6.3808,156.72,156.66,6.3831]
[1727685180672,23.776884,156.73,156.63,6.3844]
[1727685180866,0.12549,156.72,156.63,6.3844]
[1727685181072,0.12549,156.72,156.61,15.6245]
[1727685181073,6.3827,156.68,156.62,6.3847]
[1727685181676,6.3829,156.67,156.62,6.3847]
[1727685182259,6.3829,156.67,156.63,4.34912104]
[1727685182554,6.3829,156.67,156.64,4.34912104]
[1727685182778,6.3829,156.67,156.62,6.3847]
[1727685182954,6.3829,156.67,156.63,4.34912338]
[1727685183155,6.3829,156.67,156.64,4.34912338]
[1727685183366,6.3829,156.67,156.63,4.34912338]
[1727685183692,6.3829,156.67,156.64,4.34912338]
[1727685183967,6.3829,156.67,156.63,4.34912338]
[1727685184178,6.3829,156.67,156.62,6.3847]
[1727685184179,6.3829,156.67,156.64,4.34912338]
[1727685184362,6.3829,156.67,156.63,4.34912338]
[1727685184675,16.07809,156.72,156.64,4.34912338]
[1727685184862,6.3823,156.69,156.64,7.66059369]
[1727685185173,6.3823,156.69,156.64,4.34912338]
[1727685185352,6.3823,156.69,156.63,6.3843]
[1727685185552,6.3823,156.69,156.64,6.384]
[1727685185856,6.3823,156.69,156.64,10.73312338]
[1727685186170,15.7293,156.74,156.65,1.276561]
[1727685186372,15.7293,156.74,156.65,5.62568438]
[1727685187076,6.3812,156.71,156.66,26.3831]
[1727685187263,6.3812,156.71,156.66,7.65953959]
[1727685187467,6.3808,156.72,156.67,1.27641385]
[1727685189777,6.3808,156.72,156.66,6.3831]
[1727685192679,6.3808,156.72,156.67,1.27636847]
[1727685194884,6.3805,156.73,156.67,7.65876847]
[1727685195062,6.3805,156.73,156.67,22.73726847]
[1727685195265,6.3805,156.73,156.67,21.4609]
[1727685198281,6.3805,156.73,156.68,6.3823]
[1727685199181,6.3809,156.72,156.67,21.4612]
[1727685202284,6.5585,156.76,156.67,21.4612]
[1727685202585,6.3803,156.74,156.68,6.3823]
[1727685202893,6.3805,156.73,156.68,6.3823]
[1727685203668,6.3811,156.72,156.68,20.0]
[1727685203886,6.382,156.69,156.65,6.3957]
[1727685204080,6.382,156.69,156.66,20.0]
[1727685204658,6.3825,156.68,156.63,15.8544]
[1727685205164,6.382,156.69,156.64,7.66062049]
[1727685209699,6.3817,156.7,156.65,6.3835]
[1727685210198,6.3812,156.71,156.66,7.65972265]
[1727685210676,21.912,156.76,156.67,6.3828]
[1727685210883,21.912,156.76,156.68,7.65843457]
[1727685210884,6.3804,156.73,156.68,7.65843457]
[1727685211194,6.3804,156.73,156.68,6.3822]
[1727685211606,6.3804,156.73,156.69,1.27620016]
[1727685212102,6.3804,156.73,156.68,6.3822]
[1727685212596,6.3784,156.78,156.72,6.3806]
[1727685214313,6.3788,156.77,156.69,36.07558]
[1727685215286,6.3788,156.77,156.71,6.3811]
[1727685216102,15.9437,156.81,156.69,35.8246]
[1727685216278,6.3791,156.77,156.71,6.381]
[1727685216775,6.3793,156.76,156.71,6.381]
[1727685217394,23.902374,156.8,156.71,6.381]
[1727685217596,6.3791,156.77,156.71,6.381]
[1727685219903,6.3783,156.78,156.73,6.3803]
[1727685220495,6.3783,156.78,156.72,6.3807]
[1727685220694,42.27912026,156.87,156.75,26.13485067]
[1727685220695,26.22882026,156.87,156.75,26.13485067]
[1727685221009,6.3752,156.86,156.76,31.52856468]
[1727685221174,6.3757,156.85,156.77,0.25098]
[1727685221380,6.3752,156.86,156.78,1.27534616]
[1727685221585,6.3752,156.86,156.77,0.25098]
[1727685222302,6.3757,156.85,156.77,0.25098]
[1727685222982,6.3761,156.84,156.76,20.0]
[1727685225203,0.25098,156.86,156.76,20.0]
[1727685225388,24.027864,156.86,156.75,16.00729]
[1727685226180,6.3768,156.82,156.75,16.00729]
[1727685226915,6.3768,156.82,156.76,20.0]
[1727685227097,6.3772,156.81,156.76,20.0]
[1727685229511,39.965664,156.86,156.71,15.5985]
[1727685229718,6.3775,156.8,156.72,20.0]
[1727685230194,6.3781,156.79,156.72,20.0]
[1727685232494,6.3773,156.81,156.73,0.25098]
[1727685233497,15.9378,156.86,156.73,0.25098]
[1727685233800,6.3775,156.8,156.73,0.25098]
[1727685234106,6.3775,156.8,156.72,20.0]
[1727685235110,6.378,156.79,156.72,20.0]
[1727685241926,24.027864,156.85,156.72,20.0]
[1727685242218,6.3792,156.76,156.71,15.5985]
[1727685242718,6.3796,156.75,156.71,15.5985]
[1727685243501,15.9445,156.8,156.71,16.87453324]
[1727685244304,23.776884,156.79,156.71,16.87453324]
[1727685245105,6.3788,156.77,156.72,6.3807]
[1727685245306,6.3788,156.77,156.73,1.27594095]
[1727685248120,6.3784,156.78,156.73,7.65624095]
[1727685248303,6.3784,156.78,156.74,1.27585936]
[1727685248701,6.3784,156.78,156.73,6.3803]
[1727685248907,6.3784,156.78,156.73,7.65616037]
[1727685249214,6.3784,156.78,156.72,6.3807]
[1727685249411,6.3787,156.77,156.72,6.3807]
[1727685250208,15.941,156.83,156.72,0.25098]
[1727685250612,6.3789,156.77,156.71,15.5985]
[1727685254022,24.027864,156.82,156.71,15.5985]
[1727685254235,6.3803,156.74,156.68,20.0]
[1727685254431,6.3805,156.73,156.68,20.0]
[1727685255430,6.3805,156.73,156.67,15.1426]
[1727685255929,6.3805,156.73,156.67,21.5253]
[1727685256130,6.3808,156.72,156.67,21.5253]
[1727685257064,6.3812,156.71,156.67,15.1426]
[1727685257844,6.3812,156.71,156.66,6.1192]
[1727685257845,24.027864,156.76,156.63,23.0548767]
[1727685258043,6.3817,156.7,156.64,36.3839]
[1727685258939,6.3817,156.7,156.64,6.3839]
[1727685259527,6.3817,156.7,156.65,20.0]
[1727685259740,15.9498,156.75,156.64,6.3839]
[1727685259741,6.3821,156.69,156.64,6.3839]
[1727685259948,6.3824,156.68,156.63,16.3962]
[1727685260538,15.5866,156.72,156.63,16.3962]
[1727685260726,6.3828,156.67,156.63,16.3962]
[1727685261325,6.3833,156.66,156.61,6.3852]
[1727685262121,6.3828,156.67,156.62,7.66154227]
[1727685262436,23.776884,156.7,156.62,1.27674227]
[1727685262651,6.3825,156.68,156.63,6.3843]
[1727685263915,23.776884,156.7,156.59,16.1537]
[1727685264121,6.3828,156.67,156.62,6.3848]
[1727685264645,6.3832,156.66,156.61,6.3852]
[1727685265850,6.3829,156.67,156.62,6.3848]
[1727685266015,6.3829,156.67,156.63,1.27674328]
[1727685267047,6.3829,156.67,156.62,6.3848]
[1727685270443,23.776884,156.7,156.62,6.3848]
[1727685270666,6.3833,156.66,156.62,6.3848]
[1727685272849,6.3833,156.66,156.61,6.3852]
[1727685274929,6.384,156.64,156.6,6.3855]
[1727685275540,6.384,156.64,156.59,22.5395]
[1727685275744,6.384,156.64,156.59,16.1537]
[1727685276351,6.3845,156.63,156.59,22.5397]
[1727685276521,6.3845,156.63,156.59,16.1537]
[1727685278326,6.3845,156.63,156.59,22.5396]
[1727685278645,6.3849,156.62,156.58,6.3864]
[1727685282262,15.9578,156.67,156.59,6.386]
[1727685282263,23.776884,156.66,156.59,6.386]
[1727685282462,23.776884,156.66,156.59,7.66308667]
[1727685282945,23.776884,156.66,156.6,1.27697957]
[1727685283342,6.3843,156.64,156.6,1.27697957]
[1727685286046,6.3844,156.63,156.59,6.386]
[1727685286968,23.776884,156.66,156.56,0.12549]
[1727685287169,6.3819,156.7,156.64,6.3839]
[1727685287367,6.3819,156.7,156.64,7.66049731]
[1727685287677,6.3812,156.71,156.65,6.3835]
[1727685287845,21.9959,156.72,156.62,20.12549]
[1727685287846,21.9674,156.72,156.66,7.65962981]
[1727685288047,21.9674,156.72,156.66,6.3832]
[1727685288666,21.9674,156.72,156.63,0.12549]
[1727685288964,21.9674,156.72,156.65,6.3835]
[1727685289349,21.9674,156.72,156.66,7.65960034]
[1727685289554,6.3808,156.72,156.66,7.65960034]
[1727685290465,6.3808,156.72,156.67,1.27639199]
[1727685292652,23.776884,156.75,156.67,1.27639199]
[1727685292859,21.708,156.76,156.68,1.27628224]
[1727685293045,15.3596,156.76,156.66,0.25098]
[1727685293445,6.3804,156.73,156.66,6.50829]
[1727685297370,23.776884,156.75,156.65,33.33979367]
[1727685297597,6.3816,156.7,156.65,6.93459367]
[1727685297873,6.3816,156.7,156.64,22.4609]
[1727685298280,23.776884,156.73,156.65,7.66010629]